[Event "European Women Blitz-ch 2024"]
[Site "Monaco"]
[Date "2025.01.10"]
[Round "1.1"]
[White "Galvan Cipriani, Viviana"]
[Black "Kosteniuk, Alexandra"]
[Result "0-1"]
[Annotator "RC"]
[ECO "A25"]
[WhiteElo "2098"]
[BlackElo "2484"]
[PlyCount "74"]
[EventDate "2025.01.06"]
[EventType "swiss"]
[EventCountry "MNC"]
[SourceTitle "playchess.com"]
[Source "ChessBase"]
[SourceQuality "1"]
[TimeControl "180+2"]

1. c4 {[%emt 0:00:02]} e5 {[%emt 0:00:02]} 2. Nc3 {[%emt 0:00:03]} Nc6 {[%emt 0:00:01]} 3. g3 {[%emt 0:00:06]} f5 {[%emt 0:00:01]} 4. Bg2 {[%emt 0:00:04]} Nf6 {[%emt 0:00:02]} 5. a3 {[%emt 0:00:09]} a5 {[%emt 0:00:03]} 6. d3 {[%emt 0:00:08]} g6 {[%emt 0:00:03]} 7. e3 {[%emt 0:00:15]} Bg7 {[%emt 0:00:01]} 8. Nge2 {[%emt 0:00:02]} d6 {[%emt 0:00:04]} 9. O-O {[%emt 0:00:04]} O-O {[%emt 0:00:01]} 10. Rb1 {[%emt 0:00:11]} Ne7 {[%emt 0:00:05]} 11. Qc2 {[%emt 0:00:05]} c6 {[%emt 0:00:02]} 12. d4 {[%emt 0:00:13]} e4 {[%emt 0:00:02]} 13. b3 {[%emt 0:00:05]} g5 {[%emt 0:00:05]} 14. a4 {[%emt 0:00:23]} Be6 {[%emt 0:00:17]} 15. Ba3 {[%emt 0:00:02]} Re8 {[%emt 0:00:13]} 16. Rfd1 {[%emt 0:00:05]} d5 {[%emt 0:00:06]} 17. Bxe7 {[%emt 0:00:13]} Qxe7 {[%emt 0:00:03]} 18. c5 {[%emt 0:00:01]} b6 {[%emt 0:00:06]} 19. cxb6 {[%emt 0:00:14]} Reb8 {[%emt 0:00:01]} 20. Rdc1 {[%emt 0:00:33]} Rxb6 {[%emt 0:00:02]} 21. Nd1 {[%emt 0:00:07]} Bf7 {[%emt 0:00:03]} 22. Qc5 {[%emt 0:00:12]} Qb7 {[%emt 0:00:05]} 23. Rc2 {[%emt 0:00:22]} Bf8 {[%emt 0:00:02]} 24. Qc3 {[%emt 0:00:01]} Bb4 {[%emt 0:00:07]} 25. Qb2 {[%emt 0:00:04]} Bd6 {[%emt 0:00:01]} 26. Qa2 {[%emt 0:00:05]} Rb8 {[%emt 0:00:03]} 27. Nc1 {[%emt 0:00:02]} f4 {[%emt 0:00:03]} 28. gxf4 {[%emt 0:00:03]} gxf4 {[%emt 0:00:01]} 29. exf4 {[%emt 0:00:02]} Bxf4 {[%emt 0:00:01]} 30. Ne3 {[%emt 0:00:01]} Kh8 {[%emt 0:00:04]} 31. Rbb2 {[%emt 0:00:02]} Rg8 {[%emt 0:00:03]} 32. Kh1 {[%emt 0:00:02]} Bh5 {[%emt 0:00:04]} 33. Ne2 {[%emt 0:00:03]} Bxe3 {[%emt 0:00:04]} 34. fxe3 {[%emt 0:00:01]} Ng4 {[%emt 0:00:01]} 35. Rc3 {[%emt 0:00:03]} Nf2+ {[%emt 0:00:03]} 36. Kg1 {[%emt 0:00:01]} Nd1 {[%emt 0:00:04]} 37. Ng3 {[%emt 0:00:04]} Nxc3 {[%emt 0:00:02]} 0-1

[Event "European Women Blitz-ch 2024"]
[Site "Monaco"]
[Date "2025.01.10"]
[Round "1.2"]
[White "Stefanova, Antoaneta"]
[Black "Froewis, Annika"]
[Result "1-0"]
[Annotator "TA"]
[ECO "D02"]
[WhiteElo "2418"]
[BlackElo "2069"]
[PlyCount "56"]
[EventDate "2025.01.06"]
[EventType "swiss"]
[EventCountry "MNC"]
[SourceTitle "playchess.com"]
[Source "ChessBase"]
[SourceQuality "1"]
[TimeControl "180+2"]

{[%evp 9,56,0,2,4,26,0,23,7,35,2,2,12,6,4,111,112,116,111,110,107,112,92,87,78,100,77,93,53,116,73,144,166,173,161,184,174,166,147,198,191,1722,190,204,189,248,220,234,210,252]} 1. d4 {[%emt 0:00:01]} d5 {[%emt 0:00:02]} 2. Nf3 {[%emt 0:00:02]} Nf6 {[%emt 0:00:01]} 3. e3 {[%emt 0:00:00]} e6 {[%emt 0:00:02]} 4. Nbd2 {[%emt 0:00:11]} Bd6 {[%emt 0:00:05]} 5. b3 {[%emt 0:00:02]} O-O {[%emt 0:00:05]} 6. Bb2 {[%emt 0:00:01]} c5 {[%emt 0:00:02]} 7. Bd3 {[%emt 0:00:13]} Nc6 {[%emt 0:00:12]} 8. a3 {[%emt 0:00:16]} Re8 {[%emt 0:00:21]} 9. Ne5 {[%emt 0:00:22]} Bxe5 {[%emt 0:00:45]} 10. dxe5 {[%emt 0:00:03]} Nd7 {[%emt 0:00:02]} 11. f4 {[%emt 0:00:32]} b6 {[%emt 0:00:26]} (11... c4 $1 $11 {keeps the balance.} 12. Be2 (12. bxc4 Qb6 $15) 12... Qb6) 12. Qh5 $16 {[%emt 0:00:43]} g6 {[%emt 0:00:10]} 13. Qh6 {[%emt 0:00:01]} Qe7 {[%emt 0:00:58]} 14. O-O {[%emt 0:00:02]} Bb7 {[%emt 0:00:04]} 15. Nf3 {[%emt 0:00:07]} Qf8 {[%emt 0:00:05]} 16. Qh4 $36 {[%emt 0:00:01][%mdl 2048] Keeping Black busy. White has more active pieces.} Qg7 {[%emt 0:00:06]} 17. Rae1 {[%emt 0:00:03]} Rac8 {[%emt 0:00:01]} 18. e4 {[%emt 0:00:09]} d4 {[%emt 0:00:02]} (18... c4 $14 19. bxc4 dxe4 20. Rxe4 (20. Bxe4 Nc5 $16) 20... Nc5) 19. Nd2 {[%emt 0:00:03][%cal Bf3d2,Bd2c4,Bc4d6][%mdl 32]} a6 {[%emt 0:00:03]} ({Black should try} 19... g5 20. fxg5 (20. Qxg5 Qxg5 21. fxg5 Rf8 $11) 20... Ncxe5) 20. Nc4 {[%emt 0:00:02]} Red8 {[%emt 0:00:07]} 21. Nd6 {[%emt 0:00:02]} Rb8 {[%emt 0:00:02]} 22. Nxb7 {[%emt 0:00:01]} Rxb7 {[%emt 0:00:01]} 23. Bxa6 {[%emt 0:00:01]} Rc7 {[%emt 0:00:01]} (23... Rbb8 $16) 24. Bb5 $18 {[%emt 0:00:02] and Bxc6 would now be decisive} Na7 $2 {[%emt 0:00:01]} (24... Rf8 25. Bc1 g5 26. fxg5 (26. Qxg5 Qxg5 27. fxg5 Na7 $16) 26... Na7) 25. Be2 $2 {[%emt 0:00:18]} (25. Qxd8+ Nf8 26. Qxc7 Nxb5 27. Qxb6) 25... Rdc8 {[%emt 0:00:05]} 26. Rd1 {[%emt 0:00:02]} Qf8 {[%emt 0:00:02]} (26... Nc6 {was called for.} 27. Bb5 g5 28. fxg5 (28. Qxg5 Qxg5 29. fxg5 Ndxe5 $16) 28... Ndxe5) 27. a4 {[%emt 0:00:02]} Nc6 {[%emt 0:00:01]} 28. Bb5 {[%emt 0:00:02]} Ndb8 {[%emt 0:00:06]} 1-0

[Event "European Women Blitz-ch 2024"]
[Site "Monaco"]
[Date "2025.01.10"]
[Round "1.3"]
[White "De Lomas Busquets, Alba"]
[Black "Matnadze Bujiashvili, Ann"]
[Result "0-1"]
[Annotator "TA"]
[ECO "A46"]
[WhiteElo "2010"]
[BlackElo "2315"]
[PlyCount "102"]
[EventDate "2025.01.06"]
[EventType "swiss"]
[EventCountry "MNC"]
[SourceTitle "playchess.com"]
[Source "ChessBase"]
[SourceQuality "1"]
[TimeControl "180+2"]

{[%evp 11,102,10,26,25,33,26,40,27,43,26,37,24,47,17,45,37,41,-20,-17,-18,0,-8,0,-9,33,18,54,-27,-28,-21,0,1,48,49,55,0,5,-25,-14,-26,-14,-68,-74,-52,-52,-79,-16,-95,0,0,0,-92,-23,-56,-77,-149,-161,-192,-189,-189,-181,-170,-179,-335,-335,-389,-272,-259,-223,-221,-195,-181,-174,-236,-211,-1026,-972,-1518,-1500,-1462,-1470,-1327,-1189,-1220,-1248,-1561,-1275,-1689,-1441,-5281,-1876,-29991,-29992]} 1. d4 {[%emt 0:00:02]} Nf6 {[%emt 0:00:01]} 2. Nf3 {[%emt 0:00:02]} e6 {[%emt 0:00:01]} 3. Bg5 {[%emt 0:00:03]} b6 {[%emt 0:00:01]} 4. Nbd2 {[%emt 0:00:02]} Bb7 {[%emt 0:00:01]} 5. e4 {[%emt 0:00:02]} Be7 {[%emt 0:00:02]} 6. Bd3 {[%emt 0:00:03]} d6 {[%emt 0:00:03]} 7. Qe2 {[%emt 0:00:04]} h6 {[%emt 0:00:01]} 8. Bh4 {[%emt 0:00:03]} Nh5 {[%emt 0:00:02]} 9. Bxe7 {[%emt 0:00:07]} Qxe7 {[%emt 0:00:01]} 10. g3 {[%emt 0:00:18] Prevents Nf4} Nf6 {[%emt 0:00:18]} 11. O-O-O {[%emt 0:00:06]} e5 {[%emt 0:00:15]} 12. d5 {[%emt 0:00:06]} O-O {[%emt 0:00:20]} 13. Nh4 {[%emt 0:00:03]} g6 {[%emt 0:00:02] Inhibits Nf5.} 14. Nhf3 {[%emt 0:00:15]} (14. f4 $14) 14... c6 $11 {[%emt 0:00:03]} 15. dxc6 {[%emt 0:00:09]} Nxc6 {[%emt 0:00:01]} 16. a3 {[%emt 0:00:09]} Rac8 {[%emt 0:00:05]} 17. Kb1 {[%emt 0:00:01]} d5 {[%emt 0:00:12]} 18. exd5 {[%emt 0:00:13]} Nxd5 {[%emt 0:00:01]} 19. Ba6 {[%emt 0:00:08]} (19. Rhe1 $14) 19... Bxa6 {[%emt 0:00:04]} 20. Qxa6 {[%emt 0:00:01]} e4 {[%emt 0:00:11]} 21. Rhe1 {[%emt 0:00:08]} f5 {[%emt 0:00:03]} (21... Nf6 $11) 22. Nh4 $1 $14 {[%emt 0:00:22]} Qf7 {[%emt 0:00:03]} 23. Nb3 {[%emt 0:00:09]} (23. f3 $1 $14) 23... Rcd8 {[%emt 0:00:14]} 24. Ng2 {[%emt 0:00:02]} Ne5 {[%emt 0:00:05][%cal Bc6e5,Be5g4,Bg4f6,Bf6d5,Bd5f4,Bf4d3][%mdl 32]} 25. Nd4 {[%emt 0:00:11]} Rd7 {[%emt 0:00:16]} 26. Nf4 {[%emt 0:00:02]} ({White should try} 26. Qe2 $11) 26... Nxf4 {[%emt 0:00:04]} 27. gxf4 {[%emt 0:00:01]} Ng4 {[%emt 0:00:03]} 28. Qe2 {[%emt 0:00:16]} Rfd8 {[%emt 0:00:02] Black is more active.} (28... Nxh2 $17 29. Rh1 Ng4) 29. c3 {[%emt 0:00:01]} (29. Nc6 $11 Rxd1+ 30. Rxd1 Rxd1+ 31. Qxd1) 29... Rd6 {[%emt 0:00:24]} (29... Nxh2 $17 30. Nc6 Rxd1+ 31. Rxd1 Rxd1+ 32. Qxd1 Ng4) 30. h3 {[%emt 0:00:01]} Nf6 {[%emt 0:00:01]} 31. Nc2 {[%emt 0:00:02]} (31. Nc6 $11 {remains equal.} Rxd1+ (31... Rxc6 $2 32. Rxd8+ Kg7 33. Red1 $18) 32. Rxd1 Rxd1+ 33. Qxd1) 31... Qd7 {[%emt 0:00:05]} (31... Nd5 $17 32. f3 Nxf4 33. Rxd6 Rxd6) 32. Rxd6 {[%emt 0:00:02]} Qxd6 {[%emt 0:00:01]} 33. Rg1 {[%emt 0:00:14]} (33. Qc4+ $142 Qd5 34. Qa4) 33... Kh7 $1 $36 {[%emt 0:00:02][%mdl 2048] White is under strong pressure.} ({Weaker is} 33... Qxf4 34. Qc4+ (34. Rxg6+ Kf7 $16) 34... Kg7 35. Nd4 Rxd4 (35... Qxf2 $2 {perishes.} 36. Ne6+ Kh7 37. Rf1 $18) 36. cxd4 $16 (36. Qxd4 g5 $18)) 34. Qe3 {[%emt 0:00:06]} Nd5 {[%emt 0:00:02][%csl LRe3,LRf4] White is weak on the light squares} 35. Qg3 {[%emt 0:00:06]} Nxf4 {[%emt 0:00:03]} 36. Nd4 {[%emt 0:00:04]} Nd3 {[%emt 0:00:14]} 37. Qh4 $2 {[%emt 0:00:14]} (37. Nxf5 {is a better defense.} Qxg3 38. Nxg3 Nxf2 39. Re1) 37... Rf8 $19 {[%emt 0:00:04]} 38. Rd1 {[%emt 0:00:03]} Qf6 {[%emt 0:00:04]} 39. Qg3 {[%emt 0:00:02]} Rf7 {[%emt 0:00:08]} 40. f3 {[%emt 0:00:03]} Nc5 {[%emt 0:00:02]} 41. fxe4 {[%emt 0:00:02]} Nxe4 {[%emt 0:00:01]} 42. Qg1 {[%emt 0:00:02]} (42. Qf3 $142) 42... f4 {[%emt 0:00:02]} 43. Rf1 $2 {[%emt 0:00:03]} (43. Qe1 Nc5 44. Qe8) 43... Nd2+ {[%emt 0:00:01]} 44. Ka2 {[%emt 0:00:03]} Nxf1 {[%emt 0:00:02]} 45. Qxf1 {[%emt 0:00:01][%mdl 4096] Endgame KQR-KQN} f3 {[%emt 0:00:01]} 46. Qf2 {[%emt 0:00:02]} Qe5 {[%emt 0:00:03]} 47. h4 {[%emt 0:00:06]} Qe4 {[%emt 0:00:02]} 48. h5 {[%emt 0:00:03]} Qd5+ {[%emt 0:00:01]} 49. Kb1 {[%emt 0:00:05]} Qxh5 {[%emt 0:00:02]} 50. Nc2 {[%emt 0:00:04]} Qg4 {[%emt 0:00:02] Threatens to win with ...Qg2.} 51. Qe3 {[%emt 0:00:04]} f2 {[%emt 0:00:03]} 0-1

[Event "European Women Blitz-ch 2024"]
[Site "Monaco"]
[Date "2025.01.10"]
[Round "1.4"]
[White "Arabidze, Meri"]
[Black "Guillo Longares, Cecilia"]
[Result "1-0"]
[Annotator "TA"]
[ECO "D74"]
[WhiteElo "2457"]
[BlackElo "2026"]
[PlyCount "79"]
[EventDate "2025.01.06"]
[EventType "swiss"]
[EventCountry "MNC"]
[SourceTitle "playchess.com"]
[Source "ChessBase"]
[SourceQuality "1"]
[TimeControl "180+2"]

{[%evp 13,79,18,26,13,29,20,29,15,25,15,0,0,11,10,0,-12,0,0,0,0,0,0,0,0,11,0,108,-14,269,286,292,246,275,258,503,513,572,562,783,696,794,714,752,728,728,729,945,879,920,914,887,887,787,723,958,841,2892,2859,29960,29959,29975,29976,29976,29976,29975,29973,29977,29974]} 1. d4 {[%emt 0:00:01]} Nf6 {[%emt 0:00:01]} 2. c4 {[%emt 0:00:01]} g6 {[%emt 0:00:01]} 3. g3 {[%emt 0:00:01]} Bg7 {[%emt 0:00:01]} 4. Bg2 {[%emt 0:00:01]} O-O {[%emt 0:00:02]} 5. Nc3 {[%emt 0:00:01]} c5 {[%emt 0:00:02]} 6. Nf3 {[%emt 0:00:05]} d5 {[%emt 0:00:15]} 7. dxc5 {[%emt 0:00:11]} dxc4 {[%emt 0:00:05]} 8. Qa4 {[%emt 0:00:02] Against Qa5} Nc6 {[%emt 0:01:00]} 9. Qxc4 {[%emt 0:00:07]} Qa5 {[%emt 0:00:04]} 10. O-O {[%emt 0:00:09]} Be6 {[%emt 0:00:02]} 11. Qh4 {[%emt 0:00:07]} (11. Qb5 {simplifies} Qxb5 12. Nxb5 Rad8 13. Nc3) 11... Qxc5 {[%emt 0:00:35]} 12. Ng5 {[%emt 0:00:00] and Nce4 should not be overlooked} Bf5 {[%emt 0:00:03]} 13. e4 {[%emt 0:00:22]} Bd7 {[%emt 0:00:23]} 14. Be3 {[%emt 0:00:01]} Qa5 {[%emt 0:00:01]} 15. Nd5 $40 {[%emt 0:00:21][%mdl 128] White wants to mate with Nxf6+. White is up to no good.} h6 {[%emt 0:00:23]} 16. Nf3 {[%emt 0:00:01]} g5 {[%emt 0:00:23]} 17. Nxf6+ {[%emt 0:00:12]} exf6 {[%emt 0:00:02]} 18. Qh5 {[%emt 0:00:00]} f5 {[%emt 0:00:07]} 19. Rad1 {[%emt 0:00:20][%cal Ba1d1,Bd1d7,Bd7b7][%mdl 32]} fxe4 {[%emt 0:00:03]} (19... Rfd8 $11 {keeps the balance.}) 20. Nxg5 {[%emt 0:00:34]} (20. Rxd7 $16 exf3 21. Qxf3 (21. Bxf3 Ne5 $14)) 20... hxg5 $2 {[%emt 0:00:05][%mdl 8192]} (20... Be8 $11 21. Bd2 (21. Bxe4 $2 f5 $19) 21... f5 22. Qxe8 Raxe8 23. Bxa5 Nxa5) 21. Rxd7 $18 {[%emt 0:00:01]} Qf5 {[%emt 0:00:02]} 22. Rxb7 {[%emt 0:00:09]} (22. Qxg5 $2 Qxd7 23. Bxe4 Nd4 $19) 22... Ne5 {[%emt 0:00:06]} 23. Qxg5 {[%emt 0:00:11]} (23. Bxg5 $6 Rfb8 24. g4 Qxg4 25. Rxb8+ (25. Qxg4 Nxg4 26. Bxe4 Rxb7 $16) 25... Rxb8 26. Qxg4 Nxg4 $18) 23... Qe6 $2 {[%emt 0:00:00]} (23... Qxg5 {is a better defense.} 24. Bxg5 Nf3+ 25. Bxf3 exf3) 24. Bxe4 {[%emt 0:00:06]} Ng6 {[%emt 0:00:01] Wards off Re7} 25. Bd5 {[%emt 0:00:06]} ({And not} 25. Rxa7 Qxe4 26. Rxa8 Qxa8 $17 (26... Rxa8 $2 27. Rd1 $19)) 25... Qd6 {[%emt 0:00:02] [#]} 26. Bc5 $1 {[%emt 0:00:20][%mdl 512]} Qf6 {[%emt 0:00:02]} (26... Qe5 27. Qxe5) 27. Qxf6 {[%emt 0:00:02]} Bxf6 {[%emt 0:00:01]} 28. Bxf8 {[%emt 0:00:02]} Rxf8 {[%emt 0:00:02]} 29. Rxa7 {[%emt 0:00:01]} Bxb2 {[%emt 0:00:02]} 30. a4 {[%emt 0:00:02][%cal Ba2a4,Ba4a5][%mdl 32]} Bd4 {[%emt 0:00:03]} 31. Rb7 {[%emt 0:00:03]} Ne5 {[%emt 0:00:05]} 32. a5 {[%emt 0:00:02]} Rd8 {[%emt 0:00:00]} 33. Be4 {[%emt 0:00:07]} Ng4 {[%emt 0:00:00]} 34. h3 {[%emt 0:00:07]} Nxf2 {[%emt 0:00:03]} 35. Rxf2 {[%emt 0:00:01]} Bxf2+ {[%emt 0:00:02]} 36. Kxf2 {[%emt 0:00:01] KRB-KR} Rd2+ {[%emt 0:00:01]} 37. Ke3 {[%emt 0:00:00]} Ra2 {[%emt 0:00:01]} 38. Ra7 {[%emt 0:00:04]} Ra3+ {[%emt 0:00:01]} 39. Kf4 {[%emt 0:00:01]} Kf8 {[%emt 0:00:03]} 40. h4 {[%emt 0:00:01]} 1-0

[Event "European Women Blitz-ch 2024"]
[Site "Monaco"]
[Date "2025.01.10"]
[Round "1.5"]
[White "Paasikangas, Johanna"]
[Black "Wagner, Dinara"]
[Result "0-1"]
[Annotator "TA"]
[ECO "E36"]
[WhiteElo "2041"]
[BlackElo "2437"]
[PlyCount "66"]
[EventDate "2025.01.06"]
[EventType "swiss"]
[EventCountry "MNC"]
[SourceTitle "playchess.com"]
[Source "ChessBase"]
[SourceQuality "1"]
[TimeControl "180+2"]

{[%evp 15,66,16,6,-27,-24,-34,-32,-31,-39,-50,-46,-31,-16,-52,-81,-57,-63,-209,-179,-230,-212,-225,-233,-322,-234,-297,-170,-185,-159,-275,-249,-479,0,-272,-247,-400,-305,-927,-911,-29984,-29985,-29988,-29989,-29993,-1177,-1138,-321,-29991,-1199,-1202,-1179,-29997,-29998]} 1. d4 {[%emt 0:00:02]} Nf6 {[%emt 0:00:01]} 2. c4 {[%emt 0:00:03]} e6 {[%emt 0:00:01]} 3. Nc3 {[%emt 0:00:02]} Bb4 {[%emt 0:00:01]} 4. Qc2 {[%emt 0:00:01]} d5 {[%emt 0:00:01]} 5. a3 {[%emt 0:00:03]} Bxc3+ {[%emt 0:00:02]} 6. Qxc3 {[%emt 0:00:02]} O-O {[%emt 0:00:02]} 7. Nf3 {[%emt 0:00:02]} dxc4 {[%emt 0:00:12]} 8. Qxc4 {[%emt 0:00:02]} b6 {[%emt 0:00:01]} 9. Qc2 {[%emt 0:00:06]} Bb7 {[%emt 0:00:09]} 10. e3 {[%emt 0:00:13]} Nbd7 {[%emt 0:00:01][%cal Bb8d7,Bd7c5,Bc5e4,Be4c3][%mdl 32]} 11. Be2 {[%emt 0:00:04]} c5 {[%emt 0:00:02]} 12. O-O {[%emt 0:00:04]} Rc8 {[%emt 0:00:06]} 13. Qd1 {[%emt 0:00:07]} Qe7 {[%emt 0:00:22]} 14. dxc5 {[%emt 0:00:11]} Nxc5 {[%emt 0:00:01]} 15. b4 {[%emt 0:00:04]} Rfd8 {[%emt 0:00:01]} 16. Qc2 {[%emt 0:00:41]} (16. Nd4 $15) 16... Nce4 {[%emt 0:00:26]} 17. Qb2 {[%emt 0:00:04]} (17. Qb3 $142) 17... Nc3 $19 {[%emt 0:00:08]} 18. Nd4 {[%emt 0:00:11] [#]} e5 $1 {[%emt 0:00:10]} 19. Nf3 {[%emt 0:00:15]} Qe6 {[%emt 0:00:10] White is weak on the light squares} 20. h3 {[%emt 0:00:09]} Bd5 {[%emt 0:00:21]} (20... Nfe4 $142 {White must now prevent ...Nxe2+.} 21. Re1 Qg6) 21. Re1 {[%emt 0:00:03]} Qf5 {[%emt 0:00:15]} 22. a4 {[%emt 0:00:08]} (22. e4 $17 {was worth a try.} Nxe2+ (22... Qxe4 23. Bf1 $11) (22... Ncxe4 23. Qxe5 Qxe5 24. Nxe5 $14) (22... Bxe4 $2 23. Nh4 $19) (22... Nfxe4 23. Ba6 $17) 23. Qxe2 Nxe4 (23... Qxe4 24. Qxe4 Nxe4 25. Nxe5 $17) (23... Bxe4 24. Nh4 $17) 24. Bb2) 22... h6 {[%emt 0:00:30]} 23. Ra3 $2 {[%emt 0:00:05]} (23. Nh4 Nxe2+ 24. Qxe2) 23... Nfe4 $2 {[%emt 0:00:02]} (23... Nxe2+ $19 24. Qxe2 Bxf3 (24... Rc2 $2 25. Qd1 $19) 25. Qxf3 Qb1) 24. Bf1 $2 {[%emt 0:00:06][%mdl 8192]} (24. Bd3 $1 $11 {and White has nothing to worry.} Qh5 25. Bxe4 Nxe4 26. Nxe5) 24... Bb7 {[%emt 0:00:06]} 25. b5 $2 {[%emt 0:00:11]} (25. Ra1) 25... Nd1 {[%emt 0:00:03] Excellent horsemanship.} 26. Qb1 $2 {[%emt 0:00:12]} (26. Qxe5 Qxe5 27. Nxe5 Rxc1 28. Bc4) 26... Ndxf2 {[%emt 0:00:06]} 27. Bb2 {[%emt 0:00:11] [#]} Nxh3+ $1 {[%emt 0:00:02][%mdl 512]} 28. gxh3 {[%emt 0:00:03]} (28. Kh1 Qh5) 28... Qxf3 {[%emt 0:00:01]} 29. Bg2 {[%emt 0:00:01]} Qg3 {[%emt 0:00:01]} (29... Qf2+ $142 30. Kh2 Rd2 31. Re2 Rxe2 (31... Qxe2 32. Qg1 Rcc2 33. Bxe5 Qxg2+ 34. Qxg2 Rxg2+ 35. Kh1 Nf2#) 32. Qg1 Qg3+ (32... Rxb2 33. Qxf2 Nxf2 34. Kg3 Ne4+ 35. Kh4 Rxg2 36. Ra2 g5+ 37. Kh5 Ng3+ 38. Kxh6 Nf5+ 39. Kh5 Bf3#) 33. Kh1 Nf2+ (33... Rxb2 34. Ra1 Rxg2 35. Qxg2 Nf2+ 36. Kg1 Qxg2#) 34. Qxf2 Re1+ 35. Qxe1 Qxg2#) 30. Re2 {[%emt 0:00:06]} Ng5 $2 {[%emt 0:00:07]} (30... Nd2 31. e4 Qxa3 32. Bxa3 Nxb1) 31. Qf1 $2 {[%emt 0:00:05]} (31. e4 $19 Qf4 (31... Nxh3+ 32. Kf1 $15) 32. Qe1) 31... Nxh3+ {[%emt 0:00:04]} (31... Nf3+ $142 32. Qxf3 Bxf3 33. Ra1 Bxe2 34. Bxe5 Qxe5 (34... Qxe3+ 35. Kh2 Qxe5+ 36. Kh1 Qxa1+ 37. Kh2 Qe5+ 38. Kg1 Rc1+ 39. Kf2 Qf4+ 40. Kxe2 Rd2#) 35. e4 Qxa1+ 36. Kf2 Rd3 37. h4 Qd4+ (37... Rc2 {leads to mate.} 38. Bf3 Rxf3+ 39. Kg2 Qf1+ 40. Kh2 Bxb5#) 38. Ke1 Rc1+ 39. Kxe2 Qe3#) 32. Kh1 {[%emt 0:00:00]} Bxg2+ {[%emt 0:00:09]} 33. Qxg2 {[%emt 0:00:02]} Rd1+ {[%emt 0:00:02]} 0-1

[Event "European Women Blitz-ch 2024"]
[Site "Monaco"]
[Date "2025.01.10"]
[Round "1.6"]
[White "Khademalsharieh, Sarasadat"]
[Black "Prochaieva, Alina"]
[Result "1-0"]
[Annotator "TA"]
[ECO "A06"]
[WhiteElo "2458"]
[BlackElo "1936"]
[PlyCount "65"]
[EventDate "2025.01.06"]
[EventType "swiss"]
[EventCountry "MNC"]
[SourceTitle "playchess.com"]
[Source "ChessBase"]
[SourceQuality "1"]
[TimeControl "180+2"]

{[%evp 9,65,0,0,-3,-4,-16,6,13,6,22,96,115,116,117,94,106,102,101,101,14,92,87,233,208,213,206,221,214,220,62,110,43,35,46,132,131,133,139,144,155,165,161,233,237,248,255,337,244,235,228,892,857,954,693,645,563,29994,29995]} 1. Nf3 {[%emt 0:00:03]} c5 {[%emt 0:00:01]} 2. b3 {[%emt 0:00:04]} d5 {[%emt 0:00:03]} 3. e3 {[%emt 0:00:02]} a6 {[%emt 0:00:02]} 4. Bb2 {[%emt 0:00:02]} Nc6 {[%emt 0:00:02]} 5. Be2 {[%emt 0:00:04]} d4 {[%emt 0:00:09]} 6. exd4 {[%emt 0:00:04]} cxd4 {[%emt 0:00:03]} 7. O-O {[%emt 0:00:02]} e5 {[%emt 0:00:18]} 8. Re1 {[%emt 0:00:06]} Bd6 {[%emt 0:00:24]} 9. Bc4 {[%emt 0:00:05]} Nge7 {[%emt 0:00:17]} (9... Bc7 $11 {keeps the balance.}) 10. Ng5 $1 $16 {[%emt 0:00:10]} O-O {[%emt 0:00:16]} 11. Qh5 $1 {[%emt 0:00:06][%csl Gg5,LRf7,LRh7][%cal Rh5h7]} Bf5 {[%emt 0:00:58]} 12. Nxf7 {[%emt 0:00:18] White is much more active.} Rxf7 {[%emt 0:00:06]} 13. Bxf7+ {[%emt 0:00:08]} Kh8 {[%emt 0:00:04][%cal Od8f8]} 14. Bc4 {[%emt 0:00:17]} ({White should try} 14. a4 $16) 14... Bg6 {[%emt 0:00:06]} (14... Bxc2 $11 15. Qf3 e4 16. Rxe4 Bxe4 17. Qxe4 Qf8) 15. Qe2 {[%emt 0:00:08]} Nf5 {[%emt 0:00:10]} (15... Bxc2 $2 16. d3 $18) (15... e4 $16 {keeps fighting.}) 16. Bd3 {[%emt 0:00:02]} Qg5 {[%emt 0:00:08]} 17. Bxf5 {[%emt 0:00:15]} Bxf5 {[%emt 0:00:02]} 18. d3 $1 {[%emt 0:00:02]} Bg4 {[%emt 0:00:05]} 19. Qd2 $2 {[%emt 0:00:01]} (19. f3 $18 Bf5 20. Ba3) 19... Qg6 {[%emt 0:00:03] [#]} (19... Qh5 $14 {should be considered.}) 20. f3 $1 {[%emt 0:00:28]} Bxf3 $14 {[%emt 0:00:10]} 21. Qf2 {[%emt 0:00:02]} (21. Ba3 {looks sharper.} e4 22. Qf2 Nb4 23. Nd2) 21... Bd5 {[%emt 0:00:03]} (21... e4 $1 $14 22. Nd2 (22. Bxd4 $2 {is the wrong capture.} Nxd4 23. Kh1 e3 $19) 22... e3 23. Qxf3 exd2) 22. Nd2 $16 {[%emt 0:00:03]} Rf8 {[%emt 0:00:04]} 23. Qg3 {[%emt 0:00:01]} Qh6 {[%emt 0:00:02]} 24. Ne4 {[%emt 0:00:03]} Be7 {[%emt 0:00:03]} 25. Rf1 {[%emt 0:00:01]} Kg8 {[%emt 0:00:06]} (25... Rg8 $142 26. a3 Bxe4) 26. Rxf8+ $18 {[%emt 0:00:03]} Bxf8 {[%emt 0:00:01]} 27. Rf1 {[%emt 0:00:02]} Be7 {[%emt 0:00:03] Prevents Nf6+} 28. Bc1 {[%emt 0:00:02]} Qe6 {[%emt 0:00:02]} 29. Bg5 {[%emt 0:00:01] Strongly threatening Bxe7.} Bd6 $2 {[%emt 0:00:02] [#]} (29... Bxe4 30. Bxe7 (30. dxe4 Bc5 $18) 30... Nxe7) 30. Nf6+ $1 {[%emt 0:00:16][%mdl 512]} Kh8 {[%emt 0:00:03]} (30... gxf6 31. Rxf6) 31. Nxd5 {[%emt 0:00:04]} Qxd5 {[%emt 0:00:02]} 32. Qh3 {[%emt 0:00:08] Inhibits Qe6.} Qe6 {[%emt 0:00:03]} 33. Qxe6 {[%emt 0:00:55]} 1-0